bitfinex-derivatives/quotes_SOLF0:USTF0_20240926
["timestamp","ask_amount","ask_price","bid_price","bid_amount"]
[1727369232023,3.1744,157.49,157.45,3.1749]
[1727369232528,15.24,157.5,157.45,3.1749]
[1727369232922,3.174,157.51,157.44,15.24]
[1727369233229,15.24,157.52,157.44,15.24]
[1727369233525,18.4138,157.52,157.44,15.24]
[1727369233725,15.24,157.52,157.44,15.24]
[1727369234123,3.1739,157.51,157.48,3.1743]
[1727369234324,15.24,157.52,157.44,15.24]
[1727369234727,3.1741,157.5,157.47,3.1746]
[1727369234929,15.24,157.52,157.44,15.24]
[1727369235131,15.24,157.54,157.46,15.24]
[1727369235825,3.1739,157.51,157.48,3.1744]
[1727369236732,15.24,157.52,157.42,15.24]
[1727369237134,3.1738,157.52,157.5,3.174]
[1727369237331,3.1738,157.52,157.44,15.24]
[1727369237735,3.1738,157.52,157.49,3.1741]
[1727369238331,3.1735,157.53,157.5,3.174]
[1727369238933,3.1737,157.52,157.49,3.1742]
[1727369239831,3.174,157.51,157.44,15.24]
[1727369240036,15.24,157.54,157.44,15.24]
[1727369240332,3.1738,157.52,157.49,3.1741]
[1727369240532,15.24,157.54,157.44,15.24]
[1727369240936,3.1738,157.52,157.49,3.1741]
[1727369241437,3.1739,157.51,157.49,3.1741]
[1727369241631,15.24,157.52,157.42,15.24]
[1727369242232,15.24,157.52,157.41,15.24]
[1727369242736,3.1743,157.5,157.41,15.24]
[1727369242939,15.24,157.52,157.46,3.1747]
[1727369243232,15.24,157.5,157.41,15.24]
[1727369243932,15.24,157.5,157.44,3.1751]
[1727369244139,3.1745,157.48,157.41,15.24]
[1727369244528,3.1745,157.48,157.45,3.1749]
[1727369244840,3.1747,157.47,157.45,3.1749]
[1727369245337,3.1749,157.46,157.4,5.9932912]
[1727369246338,3.1747,157.47,157.44,3.1751]
[1727369246537,15.24,157.48,157.44,3.1751]
[1727369247841,3.1747,157.47,157.44,3.1751]
[1727369248941,3.1749,157.46,157.44,3.1751]
[1727369249544,3.1748,157.47,157.44,3.1751]
[1727369249730,15.24,157.48,157.43,3.1754]
[1727369250340,15.24,157.46,157.42,3.1756]
[1727369250545,15.24,157.43,157.35,60.25900158]
[1727369250736,15.24,157.42,157.35,60.17840158]
[1727369251135,38.73646423,157.48,157.35,60.17840158]
[1727369251136,15.24,157.44,157.35,60.17840158]
[1727369251443,15.24,157.44,157.39,3.1762]
[1727369251829,15.24,157.44,157.4,3.176]
[1727369252032,16.5386,157.48,157.38,15.24]
[1727369252232,3.175,157.46,157.38,15.24]
[1727369252440,15.24,157.48,157.38,18.36191267]
[1727369252742,3.1747,157.47,157.4,15.24]
[1727369252939,3.1747,157.47,157.41,1.2529]
[1727369253137,1.3782,157.49,157.41,1.2529]
[1727369253343,3.1747,157.48,157.41,1.2529]
[1727369253539,1.3782,157.49,157.41,4.46695135]
[1727369253736,1.3782,157.49,157.46,3.1748]
[1727369253936,3.1745,157.48,157.42,16.5616]
[1727369254443,4.5526,157.49,157.42,19.66476721]
[1727369254741,85.54069218,157.52,157.47,3.1747]
[1727369254935,85.54069218,157.52,157.42,19.66476721]
[1727369255144,3.1742,157.5,157.42,19.66476721]
[1727369255938,85.54069218,157.52,157.44,15.24]
[1727369255939,70.30069218,157.52,157.44,15.24]
[1727369256337,73.47439218,157.52,157.49,3.1741]
[1727369257438,70.30069218,157.52,157.5,3.1741]
[1727369257638,70.30069218,157.52,157.44,15.24]
[1727369258545,70.30069218,157.52,157.46,15.24]
[1727369259248,70.30069218,157.52,157.51,3.1739]
[1727369259543,15.24,157.57,157.48,15.24]
[1727369259743,3.1727,157.57,157.54,3.1731]
[1727369259936,1.3618,157.59,157.5,18.42935263]
[1727369260140,1.3618,157.59,157.52,15.24]
[1727369260338,3.1725,157.59,157.53,1.3681]
[1727369260539,15.24,157.61,157.53,1.3681]
[1727369260849,3.1725,157.58,157.55,3.1729]
[1727369261748,15.24,157.61,157.53,1.3681]
[1727369261946,2.6607,157.67,157.53,1.3681]
[1727369261947,15.24,157.64,157.54,15.24]
[1727369262147,1.3618,157.67,157.59,15.24]
[1727369262346,0.96634504,157.66,157.59,15.24]
[1727369262543,1.3618,157.67,157.61,15.24]
[1727369262744,1.3618,157.67,157.61,3.1719]
[1727369262940,1.3618,157.67,157.6,5.83895901]
[1727369262941,1.3618,157.67,157.6,2.6905]
[1727369263150,3.1716,157.63,157.57,15.24]
[1727369263349,15.24,157.64,157.53,17.9305]
[1727369263545,15.24,157.62,157.53,2.6905]
[1727369263745,15.24,157.62,157.55,3.173]
[1727369263944,1.2989,157.66,157.53,2.6905]
[1727369263945,15.24,157.6,157.53,2.6905]
[1727369264154,15.24,157.58,157.53,1.3276]
[1727369264655,15.24,157.64,157.55,15.24]
[1727369265047,15.24,157.64,157.58,3.1723]
[1727369265250,15.24,157.63,157.53,16.5676]
[1727369265445,15.24,157.59,157.53,1.3276]
[1727369265852,15.24,157.61,157.53,1.3276]
[1727369266051,15.24,157.61,157.54,3.1733]
[1727369266256,15.24,157.61,157.51,15.24]
[1727369266257,15.24,157.61,157.52,1.2936]
[1727369266555,15.24,157.61,157.54,3.1732]
[1727369266754,15.24,157.57,157.52,1.2936]
[1727369266955,15.24,157.55,157.47,15.24]
[1727369267347,15.24,157.53,157.46,1.2936]
[1727369267552,4.57225771,157.6,157.46,1.2936]
[1727369267553,15.24,157.56,157.46,1.2936]
[1727369267757,3.1735,157.53,157.46,1.2936]
[1727369268061,15.24,157.53,157.46,1.2936]
[1727369268360,15.24,157.51,157.46,1.2936]
[1727369268960,3.1744,157.49,157.46,1.2936]
[1727369269261,15.24,157.51,157.43,1.3689]
[1727369269457,3.1747,157.48,157.44,3.1752]
[1727369269653,3.1747,157.48,157.43,1.3689]
[1727369269854,15.24,157.51,157.43,1.3689]
[1727369270056,3.1746,157.48,157.44,3.1751]
[1727369270565,3.1748,157.47,157.43,4.5443]
[1727369270967,3.1748,157.47,157.43,1.3689]
[1727369271265,3.1749,157.46,157.43,3.1754]
[1727369271464,15.24,157.45,157.41,1.3818]
[1727369271656,3.1754,157.44,157.4,3.1759]
[1727369271861,15.24,157.45,157.4,3.1759]
[1727369272062,15.24,157.45,157.36,17.8502]
[1727369272565,15.24,157.45,157.36,2.6102]
[1727369272566,3.1758,157.42,157.36,2.6102]
[1727369272762,3.1758,157.42,157.38,3.1764]
[1727369272964,15.24,157.43,157.38,3.1764]
[1727369273163,15.24,157.43,157.37,3.1766]
[1727369273569,3.1761,157.41,157.37,3.1766]
[1727369273762,15.24,157.43,157.38,3.1764]
[1727369274060,1.2763,157.48,157.38,15.24]
[1727369274261,3.1751,157.45,157.38,15.24]
[1727369274466,16.5163,157.48,157.42,3.1757]
[1727369274657,16.5163,157.48,157.38,15.24]
[1727369275570,16.5163,157.48,157.43,3.1754]
[1727369275870,15.24,157.5,157.41,3.12127167]
[1727369276066,15.24,157.5,157.42,1.3251]
[1727369276272,1.0046,157.52,157.42,16.5651]
[1727369276273,3.1744,157.49,157.42,16.5651]
[1727369276972,3.1744,157.49,157.45,3.175]
[1727369277466,3.1744,157.49,157.42,16.5651]
[1727369277870,3.1746,157.48,157.42,1.3251]
[1727369278069,15.24,157.49,157.44,3.1752]
[1727369278371,25.3946,157.52,157.44,3.1752]
[1727369278570,25.3946,157.52,157.42,4.5007]
[1727369278771,25.3946,157.52,157.42,1.3251]
[1727369279770,3.1746,157.48,157.44,3.1752]
[1727369279973,25.6441,157.54,157.42,1.3251]
[1727369280370,3.1741,157.5,157.46,3.1748]
[1727369280563,25.6441,157.54,157.42,1.3251]
[1727369280764,1.2541,157.54,157.49,3.1743]
[1727369280969,1.2541,157.54,157.44,24.39]
[1727369281169,1.2541,157.54,157.45,1.3186]
[1727369281372,25.6441,157.54,157.45,1.3186]
[1727369281975,3.1743,157.5,157.46,3.1747]
[1727369282274,25.6441,157.54,157.46,3.1747]
[1727369282678,24.39,157.51,157.42,1.3251]
[1727369283175,24.39,157.51,157.45,3.1751]
[1727369283469,3.1741,157.5,157.42,1.3251]
[1727369283669,25.6441,157.54,157.42,1.3251]
[1727369283875,1.2541,157.54,157.44,24.39]
[1727369284267,3.1736,157.53,157.49,3.1741]
[1727369284773,1.0058,157.58,157.47,24.39]
[1727369284972,1.0058,157.58,157.51,3.1738]
[1727369285371,3.1732,157.55,157.51,3.1738]
[1727369285574,1.0058,157.58,157.51,3.1738]
[1727369286072,3.1733,157.54,157.5,3.174]
[1727369286674,3.1731,157.55,157.52,3.1737]
[1727369287574,3.1733,157.54,157.51,3.1738]
[1727369288582,1.0058,157.58,157.5,3.174]
[1727369289178,3.1734,157.54,157.5,3.174]
[1727369289582,3.1732,157.55,157.51,3.1738]
[1727369289884,3.1732,157.55,157.48,2.6655]
[1727369290279,3.1732,157.55,157.51,3.1738]
[1727369291985,24.39,157.57,157.48,2.6655]
[1727369292377,3.174,157.51,157.41,33.96554212]
[1727369292578,24.39,157.54,157.42,2.608]
[1727369292777,1.2991,157.57,157.44,24.39]
[1727369292778,24.39,157.56,157.44,24.39]
[1727369292981,3.1736,157.53,157.44,24.39]
[1727369293177,3.1736,157.53,157.5,3.1739]
[1727369293381,24.39,157.56,157.44,24.39]
[1727369293684,1.3282,157.59,157.49,24.39]
[1727369293878,24.39,157.64,157.51,24.39]
[1727369294076,2.30214585,157.63,157.51,24.39]
[1727369294390,0.96654585,157.62,157.51,24.39]
[1727369294575,3.1719,157.61,157.51,24.39]
[1727369294773,24.39,157.64,157.5,3.9229]
[1727369294774,24.39,157.69,157.56,24.39]
[1727369294981,0.96633887,157.68,157.57,1.349]
[1727369295279,0.96633887,157.68,157.57,2.7149]
[1727369295482,0.96633887,157.68,157.61,3.1717]
[1727369295684,3.1714,157.64,157.57,5.8595112]
[1727369295881,25.6634,157.69,157.61,3.1717]
[1727369296084,24.39,157.67,157.57,2.7149]
[1727369296787,3.1711,157.65,157.57,2.7149]
[1727369296983,3.1711,157.65,157.61,3.1718]
[1727369297877,3.1711,157.65,157.57,5.83518457]
[1727369297878,3.1713,157.64,157.6,3.172]
[1727369298076,25.6634,157.69,157.57,2.7149]
[1727369298576,3.1713,157.64,157.6,3.172]
[1727369299084,25.6634,157.69,157.57,5.82027016]
[1727369299284,3.1712,157.65,157.57,5.82027016]
[1727369299685,25.6634,157.69,157.57,2.7149]
[1727369299886,24.39,157.67,157.57,2.7149]
[1727369300282,24.39,157.67,157.57,5.91748653]
[1727369300485,3.1714,157.64,157.6,3.1719]
[1727369300791,15.23,157.66,157.57,21.14748653]
[1727369300988,3.1714,157.64,157.6,3.1719]
[1727369301689,3.1714,157.64,157.61,3.1718]
[1727369301990,1.2734,157.69,157.57,2.7149]
[1727369302291,15.23,157.62,157.53,15.23]
[1727369302491,3.1722,157.6,157.53,15.23]
[1727369302693,15.23,157.62,157.56,3.1727]
[1727369302892,15.23,157.62,157.53,15.23]
[1727369303083,3.1721,157.6,157.53,15.23]
[1727369303286,3.1721,157.6,157.57,3.1725]
[1727369303587,3.1717,157.62,157.55,15.23]
[1727369303990,15.23,157.64,157.58,3.1723]
[1727369304595,15.23,157.66,157.57,18.35270407]
[1727369304886,15.23,157.66,157.58,1.2897]
[1727369305086,15.23,157.66,157.59,3.1722]
[1727369305287,15.23,157.66,157.58,1.2897]
[1727369305790,3.1714,157.64,157.58,1.2897]
[1727369305985,15.23,157.68,157.59,15.23]
[1727369306188,15.23,157.68,157.61,15.23]
[1727369306382,15.23,157.68,157.59,15.23]
[1727369306786,15.23,157.68,157.61,3.1717]
[1727369307393,3.1714,157.64,157.6,3.172]
[1727369307883,15.23,157.68,157.6,3.172]
[1727369308087,15.23,157.66,157.6,3.172]
[1727369308489,15.23,157.66,157.58,1.2897]
[1727369308490,15.23,157.68,157.59,15.23]
[1727369308692,15.23,157.68,157.59,16.4838]
[1727369308892,3.1709,157.66,157.62,3.1715]
[1727369309589,15.23,157.72,157.63,15.23]
[1727369309985,3.1702,157.7,157.63,15.23]
[1727369310495,3.1702,157.7,157.6,15.23]
[1727369310496,3.1699,157.71,157.67,3.1705]
[1727369310687,15.23,157.72,157.65,15.23]
[1727369311190,3.1702,157.7,157.66,3.1707]
[1727369311592,3.1702,157.7,157.65,15.23]
[1727369311895,3.1699,157.71,157.67,3.1705]
[1727369312494,3.1699,157.71,157.65,15.23]
[1727369312495,3.1697,157.72,157.65,15.23]
[1727369312795,3.1697,157.72,157.66,1.3201]
[1727369312992,3.1696,157.73,157.69,3.1701]
[1727369313290,3.1696,157.73,157.66,1.3201]
[1727369313291,3.1696,157.73,157.67,15.23]
[1727369313492,15.23,157.76,157.67,15.23]
[1727369313886,17.8613,157.78,157.68,15.23]
[1727369314091,16.6058,157.78,157.68,15.23]
[1727369314498,3.169,157.76,157.72,3.1696]
[1727369314694,16.6058,157.78,157.72,3.1696]
[1727369315192,3.169,157.76,157.72,3.1696]
[1727369316190,3.1687,157.77,157.7,15.23]
[1727369316393,15.23,157.8,157.7,15.23]
[1727369316897,1.3717,157.82,157.7,15.23]
[1727369316898,15.23,157.78,157.7,15.23]
[1727369317090,15.23,157.78,157.66,4.0365]
[1727369317091,15.23,157.78,157.68,15.23]
[1727369317291,3.1696,157.73,157.69,3.1701]
[1727369317490,15.23,157.78,157.68,15.23]
[1727369317897,3.1694,157.74,157.7,3.1699]
[1727369318798,15.23,157.78,157.69,3.1702]
[1727369318998,15.23,157.76,157.66,19.2665]
[1727369319297,0.96554731,157.75,157.68,3.1704]
[1727369319794,3.1699,157.71,157.68,3.1704]
[1727369319990,15.23,157.74,157.67,3.1706]
[1727369320195,0.96565224,157.73,157.66,2.6959]
[1727369320389,0.96565224,157.73,157.66,21.02815221]
[1727369320594,3.1695,157.73,157.68,15.23]
[1727369320793,1.2637,157.75,157.68,15.23]
[1727369320989,0.96558878,157.74,157.67,3.11303383]
[1727369321203,3.1696,157.73,157.69,3.1701]
[1727369321397,1.2637,157.75,157.69,3.1701]
[1727369321591,0.9655957,157.74,157.69,3.1701]
[1727369321991,3.1697,157.72,157.69,3.1701]
[1727369322194,1.2637,157.75,157.68,3.1704]
[1727369322397,3.1698,157.72,157.68,3.1704]
[1727369322596,0.96562236,157.74,157.67,3.1706]
[1727369322899,1.2637,157.75,157.66,17.9259]
[1727369322900,3.1701,157.7,157.66,17.9259]
[1727369323091,3.1701,157.7,157.67,3.1705]
[1727369323294,15.23,157.74,157.67,3.1705]
[1727369323502,3.17,157.71,157.67,3.1705]
[1727369323701,15.23,157.74,157.67,3.1705]
[1727369324002,15.23,157.74,157.66,17.9259]
[1727369324003,0.96567854,157.73,157.66,1.3201]
[1727369324400,0.96567854,157.73,157.66,4.491]
[1727369324704,0.96567854,157.73,157.66,1.3201]
[1727369324905,15.23,157.72,157.64,3.1713]
[1727369325097,3.1708,157.67,157.62,16.5899]
[1727369325297,15.23,157.72,157.62,16.5899]
[1727369325499,15.23,157.7,157.62,1.3599]
[1727369325700,0.9658283,157.69,157.62,1.3599]
[1727369326003,15.23,157.72,157.65,3.1709]
[1727369326306,3.1702,157.7,157.64,15.23]
[1727369326698,3.1699,157.71,157.64,15.23]
[1727369327300,3.1697,157.72,157.66,15.23]
[1727369327500,1.2637,157.75,157.66,18.42184976]
[1727369327700,1.2637,157.75,157.68,15.23]
[1727369328404,3.1693,157.74,157.68,18.4484908]
[1727369329002,3.1693,157.74,157.7,3.1699]
[1727369329602,1.2637,157.75,157.69,3.1702]
[1727369330100,3.1696,157.73,157.7,3.17]
[1727369331496,1.2637,157.75,157.67,1.2496]
[1727369332511,15.23,157.74,157.67,1.2496]
[1727369332809,3.1699,157.71,157.67,1.2496]
[1727369333007,15.23,157.74,157.67,1.2496]
[1727369333304,3.1704,157.69,157.65,3.1709]
[1727369333509,15.23,157.72,157.64,15.23]
[1727369334007,3.17,157.71,157.67,3.1706]
[1727369334204,15.23,157.74,157.62,2.7413]
[1727369334205,15.23,157.74,157.65,3.13301154]
[1727369334399,3.1697,157.72,157.67,15.23]
[1727369334605,15.23,157.76,157.67,18.35888916]
[1727369334910,3.1696,157.73,157.69,3.1701]
[1727369335605,16.5232,157.78,157.68,15.23]
[1727369335910,0.96561592,157.77,157.68,16.5329]
[1727369336212,0.96561592,157.77,157.7,15.23]
[1727369336405,1.2932,157.78,157.7,15.23]
[1727369336605,3.1686,157.77,157.73,3.1694]
[1727369336808,16.5232,157.82,157.72,15.23]
[1727369337108,3.1689,157.76,157.72,18.3995]
[1727369337610,3.1689,157.76,157.72,3.1695]
[1727369338011,3.1691,157.75,157.7,15.23]
[1727369338210,15.23,157.8,157.7,15.23]
[1727369338412,15.23,157.77,157.69,4.4989]
[1727369338608,15.23,157.77,157.69,1.3288]
[1727369338817,15.23,157.79,157.7,15.23]
[1727369339009,3.1689,157.76,157.7,15.23]
[1727369339211,15.23,157.79,157.69,1.3288]
[1727369339517,15.23,157.77,157.69,1.3288]
[1727369339901,15.23,157.75,157.68,1.3029]
[1727369340102,3.1698,157.72,157.68,1.3029]
[1727369340307,15.23,157.75,157.68,1.3029]
[1727369341603,3.1702,157.7,157.68,1.3029]
[1727369341805,3.1702,157.7,157.66,3.1707]
[1727369342006,15.23,157.73,157.65,1.3064]
[1727369342208,17.8112,157.76,157.64,1.3449]
[1727369342209,3.1708,157.67,157.64,1.3449]
[1727369342408,15.23,157.69,157.61,15.23]
[1727369342710,15.23,157.69,157.59,17.8813]
[1727369342906,3.1709,157.66,157.62,3.1715]
[1727369343112,15.23,157.69,157.59,17.8813]
[1727369343505,15.23,157.67,157.59,5.8234]
[1727369343709,15.23,157.67,157.59,2.6513]
[1727369343911,3.1715,157.63,157.59,5.8235]
[1727369344110,3.1715,157.63,157.59,4.5171]
[1727369344308,24.37,157.67,157.59,1.3449]
[1727369344506,24.37,157.62,157.53,1.3821]
[1727369344708,24.37,157.62,157.51,1.3118]
[1727369345013,3.1728,157.57,157.52,3.1735]
[1727369345416,1.3253,157.61,157.51,1.3118]
[1727369345611,3.1728,157.57,157.53,3.1734]
[1727369345814,1.3253,157.61,157.51,1.3118]
[1727369346616,1.3253,157.61,157.52,3.1735]
[1727369347006,24.37,157.6,157.51,4.4856]
[1727369347206,24.37,157.6,157.51,1.3118]
[1727369347612,1.3253,157.61,157.51,1.3118]
[1727369348409,1.3253,157.61,157.51,4.51231539]
[1727369348614,1.3253,157.61,157.55,24.37]
[1727369349411,4.4973,157.61,157.55,24.37]
[1727369349806,4.4973,157.61,157.57,3.1726]
[1727369350007,4.4973,157.61,157.55,24.37]
[1727369350214,1.3253,157.61,157.52,24.37]
[1727369350415,1.3253,157.61,157.54,3.1732]
[1727369350918,3.1727,157.57,157.51,4.51231539]
[1727369351117,3.1727,157.57,157.53,3.1733]
[1727369351621,1.3253,157.61,157.51,4.51231539]
[1727369351622,1.3253,157.61,157.52,3.1736]
[1727369352511,1.3253,157.61,157.51,4.4857]
[1727369353113,24.37,157.59,157.49,3.1741]
[1727369353415,27.46549555,157.59,157.47,27.1077]
[1727369353609,27.46549555,157.59,157.48,1.2836]
[1727369354116,27.46549555,157.59,157.5,3.1739]
[1727369354622,24.37,157.59,157.48,1.2836]
[1727369355210,3.1732,157.55,157.51,3.1737]
[1727369355615,24.37,157.59,157.48,1.2836]
[1727369355817,24.37,157.59,157.49,3.1741]
[1727369356020,24.37,157.59,157.48,1.2836]
[1727369356915,3.1731,157.55,157.51,3.1737]
[1727369357421,1.3253,157.61,157.49,24.37]
[1727369357913,1.3253,157.61,157.54,3.1732]
[1727369358109,1.3253,157.61,157.49,24.37]
[1727369358623,1.3253,157.61,157.53,3.1734]
[1727369359216,3.1728,157.57,157.53,3.1734]
[1727369359419,1.3253,157.61,157.53,3.1734]
[1727369359821,3.1729,157.56,157.53,3.1734]
[1727369360125,24.37,157.59,157.48,1.2836]
[1727369360815,24.37,157.59,157.5,3.1741]
[1727369361011,3.1734,157.54,157.48,1.2836]
[1727369361219,24.37,157.59,157.51,3.1737]
[1727369361916,24.37,157.57,157.48,1.2836]
[1727369362618,24.37,157.57,157.49,3.1743]
[1727369362819,3.1736,157.53,157.49,3.1743]
[1727369363322,3.1736,157.53,157.5,3.174]
[1727369364520,3.1737,157.52,157.49,3.1742]
[1727369365323,3.1739,157.51,157.48,4.458]
[1727369365722,3.1739,157.51,157.48,1.2836]
[1727369366221,3.1738,157.52,157.49,3.1742]
[1727369367226,24.37,157.57,157.48,4.458]
[1727369367527,3.1747,157.48,157.42,24.37]
[1727369367820,24.37,157.54,157.42,24.37]
[1727369368129,24.37,157.52,157.4,3.8317]
[1727369368424,15.25,157.48,157.4,2.5836]
[1727369368625,3.1751,157.45,157.41,1.2481]
[1727369369028,3.1751,157.45,157.42,3.1755]
[1727369370822,3.1754,157.44,157.41,4.4239]
[1727369371131,27.53112193,157.51,157.41,4.4239]
[1727369371529,24.39,157.48,157.41,1.2481]
[1727369371723,24.39,157.48,157.36,3.9373]
[1727369371927,3.1759,157.41,157.38,3.1763]
[1727369372327,1.315,157.46,157.36,3.9373]
[1727369372528,1.315,157.46,157.38,3.1764]
[1727369372928,1.315,157.46,157.36,3.9373]
[1727369372929,25.705,157.46,157.36,2.5957]
[1727369373126,25.705,157.46,157.36,5.7726]
[1727369373427,25.705,157.46,157.36,2.5957]
[1727369373630,3.176,157.41,157.37,3.1766]
[1727369374833,3.176,157.41,157.35,3.14708043]
[1727369374834,24.39,157.43,157.31,25.7316]
[1727369375033,24.39,157.4,157.32,1.314]
[1727369375236,3.1772,157.35,157.32,1.314]
[1727369375632,24.39,157.38,157.29,1.3629]
[1727369376134,24.39,157.38,157.31,3.1779]
[1727369376536,24.39,157.38,157.3,3.178]
[1727369376835,24.39,157.38,157.28,1.314]
[1727369377029,24.39,157.36,157.28,1.314]
[1727369377339,24.39,157.36,157.28,4.4925]
[1727369377734,3.1777,157.33,157.28,4.4925]
[1727369378036,24.39,157.36,157.28,4.4925]
[1727369378429,3.1777,157.32,157.28,4.4925]
[1727369380134,3.1779,157.31,157.28,3.1785]
[1727369380331,24.39,157.36,157.28,3.1785]
[1727369380734,3.1778,157.32,157.28,3.1785]
[1727369381334,4.50781306,157.39,157.26,58.78537367]
[1727369381335,4.50781306,157.39,157.27,3.15826692]
[1727369381540,1.2963,157.39,157.26,83.17537367]
[1727369381844,24.39,157.38,157.26,83.17537367]
[1727369382039,24.39,157.38,157.26,58.78537367]
[1727369382437,3.1775,157.34,157.3,3.178]
[1727369382841,24.39,157.38,157.3,3.178]
[1727369383534,3.1774,157.34,157.3,3.178]
[1727369383851,24.39,157.38,157.31,3.1779]
[1727369384050,24.39,157.38,157.26,58.78537367]
[1727369384348,1.2963,157.39,157.28,24.39]
[1727369384546,1.2963,157.39,157.29,1.3609]
[1727369384737,3.1769,157.36,157.32,3.1776]
[1727369386844,1.2963,157.39,157.34,3.1773]
[1727369387542,3.1767,157.38,157.3,1.3745]
[1727369387942,3.1767,157.37,157.3,1.3745]
[1727369388143,3.1767,157.37,157.33,3.1773]
[1727369388343,1.2963,157.39,157.3,1.3745]
[1727369388642,1.3005,157.42,157.31,24.39]
[1727369388941,24.39,157.4,157.3,1.3745]
[1727369389143,3.1769,157.37,157.34,3.1773]
[1727369389343,24.39,157.4,157.34,3.1773]
[1727369389540,24.39,157.4,157.3,1.3745]
[1727369389848,3.1767,157.37,157.3,1.3745]
[1727369390345,3.177,157.36,157.33,3.1774]
[1727369391635,3.1771,157.35,157.32,3.1777]
[1727369392847,3.177,157.36,157.33,3.1775]
[1727369393148,15.26,157.41,157.3,16.6345]
[1727369393338,15.26,157.41,157.32,15.26]
[1727369393546,3.1766,157.38,157.32,15.26]
[1727369394747,3.1766,157.38,157.35,3.177]
[1727369395248,3.1764,157.39,157.36,3.1768]
[1727369399747,15.26,157.39,157.3,16.6345]
[1727369399952,15.26,157.37,157.3,1.3745]
[1727369400148,3.177,157.36,157.3,1.3745]
[1727369400650,15.26,157.37,157.32,3.1776]
[1727369400848,15.26,157.35,157.3,1.3745]
[1727369401251,15.26,157.35,157.31,3.1779]
[1727369401252,3.1774,157.34,157.31,3.1779]
[1727369401754,15.26,157.37,157.3,1.3745]
[1727369402146,6.3502,157.46,157.31,15.26]
[1727369402353,15.26,157.41,157.31,15.26]
[1727369402653,15.26,157.41,157.33,15.26]
[1727369403349,15.26,157.41,157.36,3.1768]
[1727369403350,3.1763,157.39,157.36,3.1768]
[1727369403548,3.1763,157.39,157.33,15.26]
[1727369403751,15.26,157.41,157.33,15.26]
[1727369403956,3.1762,157.4,157.37,3.1766]
[1727369404152,15.26,157.43,157.33,15.26]
[1727369404353,17.5285,157.45,157.35,15.26]
[1727369404753,15.26,157.43,157.35,15.26]
[1727369405656,3.176,157.41,157.38,3.1765]
[1727369406051,17.5285,157.45,157.35,18.36793301]
[1727369406252,17.5285,157.45,157.36,1.2905]
[1727369406253,15.26,157.45,157.36,1.2905]
[1727369406753,15.26,157.45,157.39,3.1762]
[1727369406754,3.1757,157.42,157.39,3.1762]
[1727369406950,15.26,157.45,157.36,1.2905]
[1727369407152,1.3778,157.46,157.39,15.26]
[1727369407953,3.1753,157.44,157.41,3.1758]
[1727369408958,3.1753,157.44,157.42,3.1757]
[1727369409562,3.1752,157.45,157.42,3.1757]
[1727369410158,3.1752,157.45,157.43,3.1755]
[1727369410359,4.5528,157.46,157.43,3.1755]
[1727369410559,3.175,157.46,157.39,15.26]